[Event "*** Titled Tuesday Blitz"]
[Site "Chess.com"]
[Date "2020.05.19"]
[Round "6"]
[White "Robert_Chessmood"]
[Black "vanea_03"]
[Result "0-1"]
[WhiteElo "2885"]
[BlackElo "2648"]
[TimeControl "180+1"]
[EndTime "13:10:30 PDT"]
[Termination "vanea_03 won on time"]

1. e4 {[%clk 0:03:00.9]} 1... e5 {[%clk 0:03:00]} 2. Nf3 {[%clk 0:02:57.1]} 2...
Nf6 {[%clk 0:03:00]} 3. d4 {[%clk 0:02:56.1]} 3... Nxe4 {[%clk 0:02:57.8]} 4.
Bd3 {[%clk 0:02:55.7]} 4... d5 {[%clk 0:02:57.7]} 5. Nxe5 {[%clk 0:02:55.3]}
5... Nd7 {[%clk 0:02:57.6]} 6. Nc3 {[%clk 0:02:55.4]} 6... Nxc3 {[%clk
0:02:53.2]} 7. bxc3 {[%clk 0:02:56.3]} 7... Bd6 {[%clk 0:02:53.4]} 8. O-O {[%clk
0:02:51.1]} 8... O-O {[%clk 0:02:52.8]} 9. Re1 {[%clk 0:02:41.8]} 9... c6 {[%clk
0:02:36.5]} 10. Qh5 {[%clk 0:02:29.3]} 10... Nf6 {[%clk 0:02:28.5]} 11. Qh4
{[%clk 0:02:28.2]} 11... Bxe5 {[%clk 0:02:12.8]} 12. Rxe5 {[%clk 0:02:20.2]}
12... Ne4 {[%clk 0:01:56.9]} 13. Qxd8 {[%clk 0:01:50.5]} 13... Rxd8 {[%clk
0:01:57.8]} 14. c4 {[%clk 0:01:47.8]} 14... Be6 {[%clk 0:01:44.4]} 15. cxd5
{[%clk 0:01:43.8]} 15... cxd5 {[%clk 0:01:45.3]} 16. c4 {[%clk 0:01:35.6]} 16...
Nf6 {[%clk 0:01:36.7]} 17. c5 {[%clk 0:01:34.5]} 17... b6 {[%clk 0:01:20.4]} 18.
Ba3 {[%clk 0:01:27.3]} 18... bxc5 {[%clk 0:01:20]} 19. dxc5 {[%clk 0:01:21.8]}
19... Rdc8 {[%clk 0:01:04.5]} 20. Re2 {[%clk 0:01:14.2]} 20... Nd7 {[%clk
0:01:01]} 21. Rc1 {[%clk 0:01:06.5]} 21... Nb8 {[%clk 0:00:58.3]} 22. Rb2 {[%clk
0:00:58.1]} 22... Nc6 {[%clk 0:00:58.6]} 23. f4 {[%clk 0:00:46.9]} 23... g6
{[%clk 0:00:56.6]} 24. Kf2 {[%clk 0:00:45.3]} 24... Rab8 {[%clk 0:00:52.3]} 25.
Rcb1 {[%clk 0:00:34.8]} 25... Rxb2+ {[%clk 0:00:45.5]} 26. Rxb2 {[%clk
0:00:35.7]} 26... Kf8 {[%clk 0:00:45.9]} 27. Ba6 {[%clk 0:00:31.6]} 27... Rc7
{[%clk 0:00:45.5]} 28. Bb5 {[%clk 0:00:18.8]} 28... Ke8 {[%clk 0:00:36.7]} 29.
Ke3 {[%clk 0:00:17.4]} 29... Kd7 {[%clk 0:00:34.1]} 30. Ba4 {[%clk 0:00:16.7]}
30... Kc8 {[%clk 0:00:28.6]} 31. Rb1 {[%clk 0:00:12.1]} 31... h5 {[%clk
0:00:25.4]} 32. g3 {[%clk 0:00:11.4]} 32... Na5 {[%clk 0:00:23.1]} 33. Kd4
{[%clk 0:00:08.5]} 33... Nc6+ {[%clk 0:00:21.6]} 34. Bxc6 {[%clk 0:00:07.3]}
34... Rxc6 {[%clk 0:00:22.5]} 35. Bc1 {[%clk 0:00:02.9]} 35... Ra6 {[%clk
0:00:21.9]} 36. Ke5 {[%clk 0:00:02.6]} 36... d4 {[%clk 0:00:18.1]} 37. Kxd4
{[%clk 0:00:02.2]} 37... Bxa2 {[%clk 0:00:15.9]} 38. Rb2 {[%clk 0:00:01.8]}
38... Be6 {[%clk 0:00:15]} 39. Ke5 {[%clk 0:00:02.2]} 39... Ra2 {[%clk
0:00:11.5]} 40. Rxa2 {[%clk 0:00:01.5]} 40... Bxa2 {[%clk 0:00:12.4]} 41. Kd6
{[%clk 0:00:02]} 41... a5 {[%clk 0:00:11.7]} 42. c6 {[%clk 0:00:01.8]} 42... a4
{[%clk 0:00:11.9]} 43. Ba3 {[%clk 0:00:02.3]} 43... Bc4 {[%clk 0:00:11.3]} 44.
Kc5 {[%clk 0:00:02.5]} 44... Bb3 {[%clk 0:00:10.5]} 45. Kb6 {[%clk 0:00:02.7]}
45... Bd5 {[%clk 0:00:10.7]} 46. Bd6 {[%clk 0:00:02.8]} 46... Bb3 {[%clk
0:00:10.1]} 47. Bc5 {[%clk 0:00:02.5]} 47... Bd5 {[%clk 0:00:10.1]} 48. Ba3
{[%clk 0:00:03.1]} 48... Bb3 {[%clk 0:00:10.4]} 49. Kc5 {[%clk 0:00:03.2]} 49...
Be6 {[%clk 0:00:10.6]} 50. Kd6 {[%clk 0:00:03.5]} 50... Bb3 {[%clk 0:00:10.5]}
51. Bb4 {[%clk 0:00:04]} 51... Be6 {[%clk 0:00:10]} 52. Bc5 {[%clk 0:00:04.4]}
52... Bb3 {[%clk 0:00:09.8]} 53. Bb4 {[%clk 0:00:04.1]} 53... Be6 {[%clk
0:00:10.2]} 54. Ba3 {[%clk 0:00:04.5]} 54... Bb3 {[%clk 0:00:10.5]} 55. Kc5
{[%clk 0:00:03.4]} 55... Kc7 {[%clk 0:00:09.5]} 56. Bb4 {[%clk 0:00:02.6]} 56...
Be6 {[%clk 0:00:09.4]} 57. Ba5+ {[%clk 0:00:02.7]} 57... Kc8 {[%clk 0:00:10]}
58. Bb4 {[%clk 0:00:03.4]} 58... Kc7 {[%clk 0:00:10.6]} 59. Kb5 {[%clk
0:00:03.6]} 59... Bb3 {[%clk 0:00:09.3]} 60. Ba5+ {[%clk 0:00:03.4]} 60... Kc8
{[%clk 0:00:09.8]} 61. Bb4 {[%clk 0:00:03.8]} 61... Kc7 {[%clk 0:00:09.9]} 62.
Bc5 {[%clk 0:00:03.3]} 62... Kc8 {[%clk 0:00:07.2]} 63. Bd6 {[%clk 0:00:02.4]}
63... Bd5 {[%clk 0:00:04.3]} 0-1

[Event "*** Titled Tuesday Blitz"]
[Site "Chess.com"]
[Date "2020.05.19"]
[Round "6"]
[White "Gerodot71"]
[Black "GoldenShare"]
[Result "0-1"]
[WhiteElo "2416"]
[BlackElo "2620"]
[TimeControl "180+1"]
[EndTime "13:10:32 PDT"]
[Termination "GoldenShare won by resignation"]

1. d4 {[%clk 0:03:00.9]} 1... d5 {[%clk 0:02:59.7]} 2. c4 {[%clk 0:03:00.7]}
2... dxc4 {[%clk 0:03:00.6]} 3. e3 {[%clk 0:02:59.1]} 3... Nf6 {[%clk
0:03:00.2]} 4. Bxc4 {[%clk 0:02:58.5]} 4... e6 {[%clk 0:03:01.1]} 5. Nf3 {[%clk
0:02:57.8]} 5... a6 {[%clk 0:03:02]} 6. Qe2 {[%clk 0:02:57.4]} 6... b5 {[%clk
0:03:00.1]} 7. Bd3 {[%clk 0:02:57.5]} 7... c5 {[%clk 0:03:00.7]} 8. dxc5 {[%clk
0:02:56.1]} 8... Bxc5 {[%clk 0:03:01.6]} 9. a3 {[%clk 0:02:55.5]} 9... Bb7
{[%clk 0:02:58.3]} 10. b4 {[%clk 0:02:54.9]} 10... Be7 {[%clk 0:02:42.9]} 11.
Bb2 {[%clk 0:02:54.1]} 11... Nbd7 {[%clk 0:02:43.1]} 12. O-O {[%clk 0:02:53.2]}
12... O-O {[%clk 0:02:43.7]} 13. Rd1 {[%clk 0:02:52.6]} 13... Nd5 {[%clk
0:02:21.7]} 14. Nbd2 {[%clk 0:02:47]} 14... Bf6 {[%clk 0:02:21.4]} 15. Ne4
{[%clk 0:02:43.3]} 15... Bxb2 {[%clk 0:02:16]} 16. Qxb2 {[%clk 0:02:43.6]} 16...
Qe7 {[%clk 0:02:04.3]} 17. Rac1 {[%clk 0:02:40.4]} 17... Rac8 {[%clk 0:02:04]}
18. Bb1 {[%clk 0:02:39.7]} 18... Rxc1 {[%clk 0:02:03.1]} 19. Rxc1 {[%clk
0:02:39.7]} 19... h6 {[%clk 0:01:40.8]} 20. h3 {[%clk 0:02:37.6]} 20... N7b6
{[%clk 0:01:35.4]} 21. Nfd2 {[%clk 0:02:29.2]} 21... Na4 {[%clk 0:01:31.1]} 22.
Qe5 {[%clk 0:02:18]} 22... Rd8 {[%clk 0:01:11.9]} 23. Nb3 {[%clk 0:02:08]} 23...
Nf6 {[%clk 0:00:54.1]} 24. Nxf6+ {[%clk 0:02:06.2]} 24... Qxf6 {[%clk
0:00:53.9]} 25. Qxf6 {[%clk 0:02:00.1]} 25... gxf6 {[%clk 0:00:54.8]} 26. Kf1
{[%clk 0:01:54.8]} 26... Bd5 {[%clk 0:00:54.3]} 27. Na5 {[%clk 0:01:47.5]} 27...
f5 {[%clk 0:00:43.6]} 28. f3 {[%clk 0:01:43.8]} 28... Kg7 {[%clk 0:00:39.9]} 29.
Ke2 {[%clk 0:01:42.2]} 29... Kf6 {[%clk 0:00:39.4]} 30. g4 {[%clk 0:01:37.7]}
30... fxg4 {[%clk 0:00:38.4]} 31. hxg4 {[%clk 0:01:37.7]} 31... Nb6 {[%clk
0:00:33.2]} 32. f4 {[%clk 0:01:23.5]} 32... Nc4 {[%clk 0:00:32.7]} 33. Nxc4
{[%clk 0:01:22.8]} 33... Bxc4+ {[%clk 0:00:33.6]} 34. Kf3 {[%clk 0:01:21.3]}
34... Rd2 {[%clk 0:00:34.1]} 35. Rh1 {[%clk 0:01:13.5]} 35... Kg7 {[%clk
0:00:33.8]} 36. Rc1 {[%clk 0:01:10]} 36... Rb2 {[%clk 0:00:28.8]} 37. Rh1 {[%clk
0:00:46.9]} 37... Rb3 {[%clk 0:00:25.5]} 38. Be4 {[%clk 0:00:40.4]} 38... Rxa3
{[%clk 0:00:22.2]} 39. g5 {[%clk 0:00:40.8]} 39... hxg5 {[%clk 0:00:20.6]} 40.
fxg5 {[%clk 0:00:41.3]} 40... Rb3 {[%clk 0:00:20.7]} 41. Kf4 {[%clk 0:00:38.4]}
41... Rxb4 {[%clk 0:00:20.4]} 42. Ke5 {[%clk 0:00:38.3]} 42... Bb3 {[%clk
0:00:16.2]} 43. Rh7+ {[%clk 0:00:37.6]} 43... Kg8 {[%clk 0:00:16.6]} 44. Rh2
{[%clk 0:00:30.6]} 44... a5 {[%clk 0:00:14.9]} 45. g6 {[%clk 0:00:24]} 45...
fxg6 {[%clk 0:00:10.9]} 46. Bxg6 {[%clk 0:00:23.6]} 46... Kg7 {[%clk 0:00:10.6]}
47. Bd3 {[%clk 0:00:20.4]} 47... Bd5 {[%clk 0:00:08.4]} 48. Rh3 {[%clk
0:00:17.3]} 48... a4 {[%clk 0:00:08]} 49. Rg3+ {[%clk 0:00:17.5]} 49... Kf8
{[%clk 0:00:08.4]} 50. Kf6 {[%clk 0:00:16.9]} 50... Rb2 {[%clk 0:00:07.3]} 51.
Rh3 {[%clk 0:00:16.8]} 51... Rf2+ {[%clk 0:00:07.3]} 52. Ke5 {[%clk 0:00:15.5]}
52... a3 {[%clk 0:00:07.8]} 53. Rh8+ {[%clk 0:00:11.5]} 53... Ke7 {[%clk
0:00:07.7]} 54. Rh7+ {[%clk 0:00:10.8]} 54... Rf7 {[%clk 0:00:08.2]} 55. Rh1
{[%clk 0:00:09.6]} 55... a2 {[%clk 0:00:08.3]} 56. Ra1 {[%clk 0:00:08.6]} 56...
b4 {[%clk 0:00:08.1]} 57. e4 {[%clk 0:00:09]} 57... Bb3 {[%clk 0:00:07]} 58. Kd4
{[%clk 0:00:08.7]} 58... Rf2 {[%clk 0:00:06.9]} 59. Kc5 {[%clk 0:00:08]} 59...
Rd2 {[%clk 0:00:04]} 60. Bf1 {[%clk 0:00:05.9]} 60... Rb2 {[%clk 0:00:04.2]} 61.
Kxb4 {[%clk 0:00:05.4]} 61... Rb1 {[%clk 0:00:04.8]} 62. Bc4 {[%clk 0:00:03.6]}
62... Rxa1 {[%clk 0:00:04.9]} 63. Bxb3 {[%clk 0:00:03.5]} 63... Rb1 {[%clk
0:00:05.3]} 64. Ka3 {[%clk 0:00:03.6]} 64... a1=Q+ {[%clk 0:00:06.2]} 0-1

[Event "*** Titled Tuesday Blitz"]
[Site "Chess.com"]
[Date "2020.05.19"]
[Round "6"]
[White "1f3_2g41-0"]
[Black "Godzillator"]
[Result "1/2-1/2"]
[WhiteElo "2308"]
[BlackElo "2446"]
[TimeControl "180+1"]
[EndTime "13:10:39 PDT"]
[Termination "Game drawn - insufficient material"]

1. e4 {[%clk 0:03:00.9]} 1... c6 {[%clk 0:03:00.1]} 2. d4 {[%clk 0:03:00.3]}
2... d5 {[%clk 0:03:01]} 3. e5 {[%clk 0:03:00.4]} 3... Bf5 {[%clk 0:03:00.7]} 4.
h4 {[%clk 0:03:00.3]} 4... h5 {[%clk 0:03:00.3]} 5. Bg5 {[%clk 0:03:00.1]} 5...
Nh6 {[%clk 0:02:58.1]} 6. Bd3 {[%clk 0:02:57.3]} 6... Bxd3 {[%clk 0:02:57.6]} 7.
Qxd3 {[%clk 0:02:58.2]} 7... Qb6 {[%clk 0:02:56.7]} 8. e6 {[%clk 0:02:56.9]}
8... fxe6 {[%clk 0:02:55.3]} 9. Nf3 {[%clk 0:02:56.2]} 9... Nf7 {[%clk
0:02:54.8]} 10. O-O {[%clk 0:02:54.2]} 10... Nd7 {[%clk 0:02:54.6]} 11. Re1
{[%clk 0:02:52.2]} 11... c5 {[%clk 0:02:52.9]} 12. Nc3 {[%clk 0:02:50.1]} 12...
O-O-O {[%clk 0:02:31.1]} 13. Na4 {[%clk 0:02:35.9]} 13... Qc6 {[%clk 0:02:22.3]}
14. Nxc5 {[%clk 0:02:33.8]} 14... Nxc5 {[%clk 0:02:18.2]} 15. dxc5 {[%clk
0:02:34.7]} 15... Qxc5 {[%clk 0:02:03.5]} 16. Rxe6 {[%clk 0:02:26.8]} 16... Kb8
{[%clk 0:01:49.2]} 17. Rae1 {[%clk 0:02:11.9]} 17... Ka8 {[%clk 0:01:48.3]} 18.
Qg6 {[%clk 0:01:43.7]} 18... Nd6 {[%clk 0:01:33.6]} 19. Be3 {[%clk 0:01:16.1]}
19... Qb5 {[%clk 0:01:21.8]} 20. Ne5 {[%clk 0:01:09.2]} 20... d4 {[%clk
0:01:15.2]} 21. Bxd4 {[%clk 0:01:03.8]} 21... Rh6 {[%clk 0:01:15.3]} 22. Rxd6
{[%clk 0:00:29.6]} 22... exd6 {[%clk 0:01:05.8]} 23. Qg5 {[%clk 0:00:29.5]}
23... Rc8 {[%clk 0:00:59.9]} 24. Nf7 {[%clk 0:00:22.5]} 24... Qxg5 {[%clk
0:00:58.3]} 25. hxg5 {[%clk 0:00:20.3]} 25... Rg6 {[%clk 0:00:56.2]} 26. f4
{[%clk 0:00:20.3]} 26... d5 {[%clk 0:00:49.1]} 27. f5 {[%clk 0:00:20.5]} 27...
Ra6 {[%clk 0:00:48.7]} 28. a3 {[%clk 0:00:19.4]} 28... Ra4 {[%clk 0:00:43.5]}
29. c3 {[%clk 0:00:17.9]} 29... b6 {[%clk 0:00:33.5]} 30. Re5 {[%clk 0:00:17.7]}
30... Bc5 {[%clk 0:00:29.1]} 31. Rxd5 {[%clk 0:00:17.3]} 31... Bxd4+ {[%clk
0:00:29.3]} 32. cxd4 {[%clk 0:00:18.2]} 32... Rc1+ {[%clk 0:00:26]} 33. Kh2
{[%clk 0:00:18.3]} 33... Rc2 {[%clk 0:00:22.7]} 34. Rd8+ {[%clk 0:00:15.7]}
34... Kb7 {[%clk 0:00:22.4]} 35. Nd6+ {[%clk 0:00:15.5]} 35... Ka6 {[%clk
0:00:21.1]} 36. f6 {[%clk 0:00:15.2]} 36... gxf6 {[%clk 0:00:20.5]} 37. gxf6
{[%clk 0:00:16.1]} 37... Rxd4 {[%clk 0:00:19.6]} 38. f7 {[%clk 0:00:15.3]} 38...
Rf2 {[%clk 0:00:19.9]} 39. f8=Q {[%clk 0:00:09.2]} 39... Rxf8 {[%clk 0:00:19.5]}
40. Rxf8 {[%clk 0:00:10.1]} 40... Rxd6 {[%clk 0:00:19.8]} 41. Rf5 {[%clk
0:00:09.9]} 41... Rd2 {[%clk 0:00:19.3]} 42. Rxh5 {[%clk 0:00:09.4]} 42... Rxb2
{[%clk 0:00:19.6]} 43. Rh4 {[%clk 0:00:09.9]} 43... Kb5 {[%clk 0:00:18.1]} 44.
Kh3 {[%clk 0:00:06.3]} 44... Rb3+ {[%clk 0:00:17.4]} 45. Kh2 {[%clk 0:00:06.8]}
45... Rxa3 {[%clk 0:00:17.7]} 46. g4 {[%clk 0:00:07.5]} 46... Ra4 {[%clk
0:00:15.3]} 47. Rh5+ {[%clk 0:00:07.4]} 47... Kc4 {[%clk 0:00:14.6]} 48. g5
{[%clk 0:00:08.3]} 48... Ra5 {[%clk 0:00:13.9]} 49. Rh4+ {[%clk 0:00:08.7]}
49... Kb3 {[%clk 0:00:11]} 50. Rg4 {[%clk 0:00:09.1]} 50... Re5 {[%clk
0:00:10.4]} 51. g6 {[%clk 0:00:09]} 51... Re8 {[%clk 0:00:10.6]} 52. g7 {[%clk
0:00:08.6]} 52... Rg8 {[%clk 0:00:10.7]} 53. Kg3 {[%clk 0:00:09.3]} 53... a5
{[%clk 0:00:08.9]} 54. Kf3 {[%clk 0:00:09.9]} 54... b5 {[%clk 0:00:08.6]} 55.
Ke3 {[%clk 0:00:09.5]} 55... b4 {[%clk 0:00:07.9]} 56. Kd2 {[%clk 0:00:10]}
56... a4 {[%clk 0:00:08.5]} 57. Kc1 {[%clk 0:00:10.4]} 57... Ka3 {[%clk
0:00:08.5]} 58. Kb1 {[%clk 0:00:10]} 58... b3 {[%clk 0:00:08.4]} 59. Rg3 {[%clk
0:00:09.6]} 59... Re8 {[%clk 0:00:05.8]} 60. Rg1 {[%clk 0:00:07.4]} 60... Rg8
{[%clk 0:00:05]} 61. Rg3 {[%clk 0:00:07.4]} 61... Kb4 {[%clk 0:00:05.1]} 62.
Rg4+ {[%clk 0:00:07.5]} 62... Kb5 {[%clk 0:00:05.1]} 63. Rg5+ {[%clk 0:00:07.4]}
63... Kc6 {[%clk 0:00:04.8]} 64. Rg4 {[%clk 0:00:07.8]} 64... a3 {[%clk
0:00:03.9]} 65. Rg3 {[%clk 0:00:08.3]} 65... a2+ {[%clk 0:00:01.9]} 66. Kb2
{[%clk 0:00:08]} 66... Kd6 {[%clk 0:00:02.2]} 67. Rxb3 {[%clk 0:00:06.7]} 67...
a1=Q+ {[%clk 0:00:01.1]} 68. Kxa1 {[%clk 0:00:06.6]} 68... Rxg7 {[%clk 0:00:02]}
69. Rb6+ {[%clk 0:00:07.2]} 69... Kc5 {[%clk 0:00:01.7]} 70. Ra6 {[%clk
0:00:07.2]} 70... Rb7 {[%clk 0:00:01.7]} 71. Ra2 {[%clk 0:00:06.7]} 71... Kc4
{[%clk 0:00:01.7]} 72. Rb2 {[%clk 0:00:07.3]} 72... Rxb2 {[%clk 0:00:01.4]} 73.
Kxb2 {[%clk 0:00:08.2]} 1/2-1/2

[Event "*** Titled Tuesday Blitz"]
[Site "Chess.com"]
[Date "2020.05.19"]
[Round "6"]
[White "Orest_Vovk"]
[Black "want2lose"]
[Result "1-0"]
[WhiteElo "2374"]
[BlackElo "2813"]
[TimeControl "180+1"]
[EndTime "13:10:41 PDT"]
[Termination "Orest_Vovk won by checkmate"]

1. e4 {[%clk 0:03:00.9]} 1... e6 {[%clk 0:02:59.8]} 2. Be2 {[%clk 0:02:59.1]}
2... d5 {[%clk 0:03:00.7]} 3. d3 {[%clk 0:02:59.8]} 3... c5 {[%clk 0:03:00.8]}
4. f4 {[%clk 0:02:59.1]} 4... Nc6 {[%clk 0:03:00.8]} 5. Nf3 {[%clk 0:02:59.4]}
5... dxe4 {[%clk 0:03:00.4]} 6. dxe4 {[%clk 0:02:59.3]} 6... Qxd1+ {[%clk
0:03:01.3]} 7. Bxd1 {[%clk 0:03:00.1]} 7... Bd7 {[%clk 0:02:56.5]} 8. c3 {[%clk
0:03:00.3]} 8... Nf6 {[%clk 0:02:56.2]} 9. Bc2 {[%clk 0:02:55]} 9... Be7 {[%clk
0:02:54]} 10. Be3 {[%clk 0:02:55.1]} 10... Ng4 {[%clk 0:02:50.3]} 11. Bg1 {[%clk
0:02:54]} 11... f5 {[%clk 0:02:46.5]} 12. e5 {[%clk 0:02:46.1]} 12... Nh6 {[%clk
0:02:43.4]} 13. Nbd2 {[%clk 0:02:38.9]} 13... Nf7 {[%clk 0:02:44.1]} 14. h4
{[%clk 0:02:37.8]} 14... O-O-O {[%clk 0:02:41.8]} 15. O-O-O {[%clk 0:02:37.1]}
15... b6 {[%clk 0:02:35.5]} 16. Nc4 {[%clk 0:02:35.3]} 16... Kc7 {[%clk
0:02:24.2]} 17. Ng5 {[%clk 0:02:27.7]} 17... Nxg5 {[%clk 0:02:21.9]} 18. hxg5
{[%clk 0:02:27.7]} 18... h6 {[%clk 0:02:17.9]} 19. gxh6 {[%clk 0:01:39.5]} 19...
gxh6 {[%clk 0:02:17.8]} 20. Bf2 {[%clk 0:01:35.7]} 20... Rdg8 {[%clk 0:02:17.8]}
21. g3 {[%clk 0:01:35.9]} 21... h5 {[%clk 0:02:14.3]} 22. Nd6 {[%clk 0:01:27.8]}
22... Rh7 {[%clk 0:01:45.9]} 23. Nb5+ {[%clk 0:01:09.6]} 23... Kc8 {[%clk
0:01:42.3]} 24. Ba4 {[%clk 0:01:09.5]} 24... Bf8 {[%clk 0:01:36.6]} 25. Rd2
{[%clk 0:00:56.7]} 25... a6 {[%clk 0:01:24.3]} 26. Nd6+ {[%clk 0:00:52.5]} 26...
Kc7 {[%clk 0:01:24.9]} 27. Rhd1 {[%clk 0:00:52.4]} 27... Nxe5 {[%clk 0:01:01.1]}
28. Bxd7 {[%clk 0:00:40.4]} 28... Nxd7 {[%clk 0:01:02]} 29. Ne8+ {[%clk
0:00:40.3]} 29... Kc8 {[%clk 0:00:57]} 30. Rxd7 {[%clk 0:00:23.8]} 30... Rxd7
{[%clk 0:00:57.6]} 31. Rxd7 {[%clk 0:00:23.3]} 31... Kxd7 {[%clk 0:00:58.5]} 32.
Nf6+ {[%clk 0:00:24]} 32... Ke7 {[%clk 0:00:58.7]} 33. Nxg8+ {[%clk 0:00:24.9]}
33... Kf7 {[%clk 0:00:59.1]} 34. Kc2 {[%clk 0:00:15.4]} 34... Kxg8 {[%clk
0:00:59]} 35. Kb3 {[%clk 0:00:16]} 35... Kf7 {[%clk 0:00:55.1]} 36. a4 {[%clk
0:00:16.2]} 36... e5 {[%clk 0:00:39.7]} 37. fxe5 {[%clk 0:00:15.6]} 37... Ke6
{[%clk 0:00:40.4]} 38. Kc4 {[%clk 0:00:15.9]} 38... Kxe5 {[%clk 0:00:37.5]} 39.
b4 {[%clk 0:00:16.1]} 39... f4 {[%clk 0:00:32]} 40. gxf4+ {[%clk 0:00:15.8]}
40... Kxf4 {[%clk 0:00:32.9]} 41. b5 {[%clk 0:00:14.2]} 41... a5 {[%clk
0:00:21.6]} 42. Kd5 {[%clk 0:00:14.2]} 42... Bg7 {[%clk 0:00:11.8]} 43. c4
{[%clk 0:00:13.7]} 43... Bd4 {[%clk 0:00:08.5]} 44. Bh4 {[%clk 0:00:13.5]} 44...
Kg4 {[%clk 0:00:07.5]} 45. Bd8 {[%clk 0:00:12]} 45... Kf5 {[%clk 0:00:07.6]} 46.
Bxb6 {[%clk 0:00:09.6]} 46... h4 {[%clk 0:00:07.4]} 47. Bc7 {[%clk 0:00:09.7]}
47... Be3 {[%clk 0:00:03.2]} 48. b6 {[%clk 0:00:09]} 48... Bf4 {[%clk
0:00:03.7]} 49. Bxf4 {[%clk 0:00:08.7]} 49... Kxf4 {[%clk 0:00:04.6]} 50. b7
{[%clk 0:00:09.1]} 50... h3 {[%clk 0:00:05.5]} 51. b8=Q+ {[%clk 0:00:09.6]}
51... Kf3 {[%clk 0:00:06.1]} 52. Qh2 {[%clk 0:00:10.1]} 52... Kg4 {[%clk
0:00:07]} 53. Kxc5 {[%clk 0:00:10.1]} 53... Kf5 {[%clk 0:00:07.7]} 54. Kb5
{[%clk 0:00:11]} 54... Ke4 {[%clk 0:00:08.6]} 55. Kxa5 {[%clk 0:00:11.7]} 55...
Kd4 {[%clk 0:00:09.1]} 56. Kb5 {[%clk 0:00:12.6]} 56... Ke4 {[%clk 0:00:09.7]}
57. Qxh3 {[%clk 0:00:12.8]} 57... Ke5 {[%clk 0:00:10.2]} 58. c5 {[%clk 0:00:13]}
58... Kd4 {[%clk 0:00:11.1]} 59. Kb6 {[%clk 0:00:13]} 59... Ke4 {[%clk 0:00:12]}
60. c6 {[%clk 0:00:13.1]} 60... Kd5 {[%clk 0:00:12.9]} 61. c7 {[%clk 0:00:13.4]}
61... Kd6 {[%clk 0:00:13.8]} 62. c8=Q {[%clk 0:00:12.9]} 62... Ke5 {[%clk
0:00:14.7]} 63. a5 {[%clk 0:00:12.9]} 63... Kf6 {[%clk 0:00:15.6]} 64. a6 {[%clk
0:00:13]} 64... Kg5 {[%clk 0:00:16.5]} 65. Qc5+ {[%clk 0:00:12.8]} 65... Kf6
{[%clk 0:00:17.4]} 66. Qh6+ {[%clk 0:00:12.6]} 66... Kf7 {[%clk 0:00:18.3]} 67.
a7 {[%clk 0:00:09.1]} 67... Ke8 {[%clk 0:00:18.6]} 68. Qcc6+ {[%clk 0:00:07.6]}
68... Ke7 {[%clk 0:00:19.3]} 69. Qb7+ {[%clk 0:00:07.6]} 69... Kd8 {[%clk
0:00:19.8]} 70. a8=Q# {[%clk 0:00:07.8]} 1-0